fUSD/lending_fUSD_20250331
["ID","MTS","AMOUNT","RATE_DAILY","PERIOD"]
[356910641,1743421839786,-150.0,0.00047744,7]
[356910642,1743421839795,-150.0,0.00047747,7]
[356910643,1743421839805,-150.0,0.00047749,7]
[356910644,1743421839814,-150.0,0.00047753,7]
[356910645,1743421839823,-150.0,0.00047759,7]
[356910646,1743421839833,-150.0,0.00047764,7]
[356910647,1743421839843,-150.0,0.00047773,7]
[356910648,1743421839853,-722.4541241,0.0004778,3]
[356910649,1743421839862,-150.0,0.00047782,7]
[356910650,1743421839872,-152.0,0.00047789,3]
[356910651,1743421839881,-151.0,0.0004779,14]
[356910652,1743421839891,-151.0,0.0004779,14]
[356910653,1743421839901,-722.4541241,0.0004779,3]
[356910654,1743421839911,-150.0,0.00047792,7]
[356910655,1743421839920,-1000.0,0.00047793,14]
[356910656,1743421839930,-155.581754,0.00047793,14]
[356910657,1743421839940,-450.009239,0.00047793,14]
[356910658,1743421839949,-450.009239,0.00047793,14]
[356910659,1743421839959,-150.0,0.00047798,7]
[356910660,1743421839968,-10010.9489,0.000478,120]
[356910661,1743421839977,-150.0,0.00047801,7]
[356910662,1743421839988,-150.0,0.00047804,7]
[356910663,1743421839997,-150.0,0.00047813,7]
[356910664,1743421840007,-150.0,0.00047813,7]
[356910665,1743421840016,-150.0,0.00047814,7]
[356910666,1743421840026,-1495.96,0.00047814,2]
[356910667,1743421840035,-199.0,0.00047823,10]
[356910668,1743421840045,-150.0,0.00047825,7]
[356910669,1743421840054,-150.0,0.00047825,7]
[356910670,1743421840063,-150.0,0.00047826,7]
[356910671,1743421840073,-150.0,0.00047828,7]
[356910672,1743421840082,-150.0,0.00047831,7]
[356910674,1743421840092,-150.0,0.00047831,7]
[356910675,1743421840101,-150.0,0.00047832,7]
[356910676,1743421840112,-150.0,0.00047835,7]
[356910677,1743421840124,-151.82491496,0.00047835,14]
[356910678,1743421840133,-587.374961,0.00047845,30]
[356910679,1743421840142,-150.0,0.00047849,7]
[356910680,1743421840153,-150.0,0.00047851,7]
[356910681,1743421840162,-150.0,0.00047853,7]
[356910682,1743421840171,-150.0,0.00047856,7]
[356910683,1743421840181,-150.0,0.00047859,7]
[356910684,1743421840190,-150.0,0.00047863,7]
[356910685,1743421840200,-150.0,0.00047865,7]
[356910686,1743421840209,-2045.97278145,0.00047873,15]
[356910687,1743421840219,-150.0,0.00047877,7]
[356910688,1743421840227,-150.0,0.00047877,7]
[356910689,1743421840237,-722.4541241,0.00047878,4]
[356910690,1743421840246,-150.0,0.00047881,7]
[356910691,1743421840255,-150.0,0.00047883,7]
[356910692,1743421840264,-150.0,0.00047884,7]
[356910693,1743421840273,-171.817819,0.00047888,14]
[356910694,1743421840283,-152.457172,0.00047888,14]
[356910695,1743421840292,-1495.96,0.00047889,2]
[356910696,1743421840302,-342.49141584,0.00047889,20]
[356910697,1743421840311,-5000.0,0.00047889,120]
[356910698,1743421840320,-150.0,0.00047891,7]
[356910699,1743421840330,-150.0,0.00047895,7]
[356910700,1743421840339,-150.0,0.00047896,7]
[356910701,1743421840348,-150.0,0.00047899,7]
[356910702,1743421840358,-150.0,0.000479,7]
[356910703,1743421840367,-156.87249936,0.000479,30]
[356910704,1743421840376,-150.0,0.00047906,7]
[356910707,1743421840386,-150.0,0.00047911,7]
[356910709,1743421840396,-150.0,0.00047912,7]
[356910711,1743421840405,-150.0,0.00047913,7]
[356910713,1743421840413,-150.0,0.00047916,7]
[356910715,1743421840423,-150.0,0.00047916,7]
[356910716,1743421840432,-150.0,0.00047921,7]
[356910717,1743421840441,-150.0,0.00047927,7]
[356910718,1743421840450,-150.0,0.00047928,7]
[356910719,1743421840459,-150.0,0.00047931,7]
[356910720,1743421840471,-150.0,0.00047931,7]
[356910721,1743421840480,-722.4541241,0.00047935,4]
[356910722,1743421840492,-150.0,0.00047935,7]
[356910724,1743421840501,-150.0,0.00047941,7]
[356910726,1743421840511,-150.0,0.00047942,7]
[356910727,1743421840520,-153.88364,0.00047942,14]
[356910728,1743421840529,-151.0,0.00047942,14]
[356910729,1743421840539,-151.0,0.00047942,14]
[356910730,1743421840548,-152.235236,0.00047942,14]
[356910731,1743421840558,-151.0,0.00047942,14]
[356910732,1743421840567,-154.296182,0.00047942,14]
[356910733,1743421840576,-158.032504,0.00047942,14]
[356910734,1743421840585,-152.349444,0.00047942,14]
[356910735,1743421840594,-151.0,0.00047942,14]
[356910736,1743421840604,-500.0,0.00047945,120]
[356910737,1743421840613,-1762.59,0.00047945,120]
[356910738,1743421840623,-500.0,0.00047945,120]
[356910739,1743421840632,-500.0,0.00047945,120]
[356910740,1743421840642,-660.96,0.00047945,120]
[356910741,1743421840651,-500.0,0.00047945,120]
[356910742,1743421840660,-1333.99,0.00047945,2]
[356910743,1743421840670,-687.37,0.00047945,120]
[356910744,1743421840680,-972.35,0.00047945,120]
[356910745,1743421840689,-150.0,0.00047947,7]
[356910746,1743421840699,-150.0,0.0004795,7]
[356910747,1743421840708,-151.0,0.00047953,14]
[356910748,1743421840718,-154.348404,0.00047953,14]
[356910749,1743421840727,-151.0,0.00047953,14]
[356910750,1743421840739,-150.0,0.00047956,7]
[356910751,1743421840749,-150.0,0.0004796,7]
[356910752,1743421840759,-722.4541241,0.00047963,4]
[356910753,1743421840768,-151.0,0.00047963,14]
[356910754,1743421840778,-1495.96,0.00047963,2]
[356910755,1743421840788,-150.0,0.00047964,7]
[356910756,1743421840798,-2167.3623723,0.00047969,4]
[356910757,1743421840807,-722.4541241,0.0004797,4]
[356910758,1743421840817,-7353.0,0.00047973,120]
[356910759,1743421840826,-155.44239134,0.00047973,10]
[356910760,1743421840836,-364.79233145,0.00047973,120]
[356910761,1743421840845,-150.0,0.00047977,7]
[356910762,1743421840855,-150.0,0.00047979,7]
[356910763,1743421840866,-2889.8164964,0.00047979,4]
[356910764,1743421840875,-450.009239,0.0004798,14]
[356910765,1743421840884,-450.009239,0.0004798,14]
[356910766,1743421840894,-151.0,0.0004798,14]
[356910767,1743421840904,-181.34653969,0.00047989,120]
[356910768,1743421840914,-151.0,0.00047989,14]
[356910769,1743421840926,-500.0,0.00047989,120]
[356910770,1743421840937,-166.28777178,0.00047989,120]
[356910776,1743421841065,-183.26167507,0.00047989,120]
[356910777,1743421841075,-708.73,0.00047989,120]
[356910779,1743421841084,-349.249828,0.00047989,14]
[356910781,1743421841094,-349.249828,0.00047989,14]
[356910783,1743421841103,-500.0,0.00047989,120]
[356910784,1743421841115,-528.28139042,0.00047989,120]
[356910786,1743421841126,-500.0,0.00047989,120]
[356910788,1743421841135,-577.60717928,0.00047989,120]
[356910790,1743421841144,-531.04068883,0.00047989,120]
[356910792,1743421841155,-530.54301334,0.00047989,120]
[356910794,1743421841164,-411.30099667,0.00047989,120]
[356910795,1743421841174,-500.0,0.00047989,2]
[356910797,1743421841184,-325.40217454,0.00047989,120]
[356910799,1743421841195,-500.0,0.00047989,120]
[356910801,1743421841204,-329.6984775,0.00047989,120]
[356910803,1743421841214,-355.35231171,0.00047989,30]
[356910805,1743421841224,-1875.973655,0.00047989,14]
[356910807,1743421841234,-1875.973655,0.00047989,14]
[356910808,1743421841244,-1875.973655,0.00047989,14]
[356910810,1743421841254,-1875.973655,0.00047989,14]
[356910812,1743421841263,-500.0,0.00047989,120]
[356910814,1743421841273,-207.26971951,0.00047989,120]
[356910816,1743421841283,-406.56338666,0.00047989,120]
[356910818,1743421841292,-366.85975392,0.00047989,120]
[356910820,1743421841301,-228.54511939,0.00047989,120]
[356910821,1743421841310,-833.84,0.00047989,120]
[356910823,1743421841319,-518.63,0.00047989,120]
[356910825,1743421841329,-153.104277,0.00047989,14]
[356910827,1743421841338,-151.0,0.00047989,14]
[356910829,1743421841346,-500.0,0.00047989,10]
[356910831,1743421841355,-500.0,0.00047989,120]
[356910832,1743421841364,-153.217977,0.00047989,14]
[356910834,1743421841374,-151.0,0.00047989,14]
[356910836,1743421841383,-500.0,0.00047989,120]
[356910838,1743421841392,-158.176248,0.00047989,14]
[356910839,1743421841400,-151.0,0.00047989,14]
[356910841,1743421841410,-151.0,0.00047989,14]
[356910843,1743421841420,-155.001029,0.00047989,14]
[356910845,1743421841429,-151.0,0.00047989,14]
[356910847,1743421841438,-151.0,0.00047989,14]
[356910849,1743421841447,-151.0,0.00047989,14]
[356910850,1743421841458,-500.0,0.00047989,120]
[356910852,1743421841467,-151.0,0.00047989,14]
[356910853,1743421841476,-151.0,0.0004799,14]
[356910854,1743421841486,-450.009239,0.0004799,14]
[356910855,1743421841496,-450.009239,0.0004799,14]
[356910856,1743421841506,-151.0,0.0004799,14]
[356910857,1743421841515,-151.0,0.0004799,14]
[356910858,1743421841525,-300.0,0.00047999,30]
[356910859,1743421841534,-228.64620562,0.00048,61]
[356910860,1743421841543,-4239.64364351,0.00048,41]
[356910861,1743421841553,-2881.19596792,0.00048,120]
[356910862,1743421841562,-89738.78298327,0.00048,2]
[356910863,1743421841576,-1361.32179779,0.00048,2]
[356910864,1743421841587,-756.33187399,0.00048,2]
[356910865,1743421841598,-11981.1933093,0.00048,2]
[356910866,1743421841618,-256.91980793,0.00048,2]
[356910867,1743421841629,-952.300436,0.00048,2]
[356910868,1743421841642,-2843.885548,0.00048,2]
[356910869,1743421841653,-33377.58764786,0.00048,2]
[356910870,1743421841788,-31244.13587929,0.00048,2]
[356910871,1743421841801,-213283.27600453,0.00048,2]
[356910872,1743421841813,-64729.47513729,0.00048,2]
[356910873,1743421841824,-2267.16292566,0.00048,2]
[356910874,1743421842358,-0.01059651,0.00048,2]
[356910875,1743421842373,-20975.72701173,0.00048,2]
[356910876,1743421842385,-4403.8120149,0.00048,2]
[356910877,1743421842396,-1746.3324078,0.00048,2]
[356910878,1743421842407,-5702.41323589,0.00048,2]
[356910879,1743421842418,-11642.17520474,0.00048,2]
[356910880,1743421842431,-973.22817083,0.00048,2]
[356910881,1743421842442,-719.442235,0.00048,2]
[356910882,1743421842453,-660.07913423,0.00048,2]
[356910883,1743421842464,-617.041611,0.00048,2]
[356910884,1743421842474,-2299.19999989,0.00048,2]
[356910885,1743421842486,-11254.18968894,0.00048,2]
[356910886,1743421842498,-62642.73397459,0.00048,2]
[356910887,1743421842513,-3798.06765,0.00048,2]
[356910894,1743421843464,-758.57759602,0.00047859,7]
[356910895,1743421843475,-486.42240398,0.00047859,7]
[356910896,1743421843484,-229.44119448,0.00048,2]
[356910897,1743421843496,-296.13443335,0.00048,2]
[356910898,1743421843520,-638.55,0.00048,2]
[356910902,1743421845453,-260.21967204,0.00022447,2]
[356910903,1743421845463,-92010.32858819,0.00048,2]
[356910904,1743421845474,-596.21275922,0.00048,2]
[356910915,1743421846430,-258.462,0.00048,2]
[356910916,1743421846538,-268.987887,0.00048,2]
[356910917,1743421846550,-318.8803487,0.00048,2]
[356910918,1743421846564,-3929.50000003,0.00048,2]
[356910919,1743421846642,-1100.0,0.00048,2]
[356910920,1743421846653,-878.15443804,0.00048,2]
[356910921,1743421846665,-1306.72613955,0.00048,2]
[356910922,1743421846678,-564.88228283,0.00048,2]
[356910923,1743421846697,-150.0,0.00047846,7]
[356910924,1743421846707,-1506.9,0.00048,2]
[356910925,1743421846718,-337.82000013,0.00048,2]
[356911314,1743422039148,196.5,0.00013699,2]
[356911317,1743422299886,159.99,0.00033513,30]
[356911318,1743422486703,437.9,0.00014887,2]
[356911319,1743422720169,594.0,0.00025,60]
[356911320,1743422840181,-151.6824,0.00025,2]
[356911321,1743422868267,-98.3176,0.00025,2]
[356911322,1743422868297,-101.6824,0.00026849,2]
[356911323,1743422877948,-51.4276,0.00026849,2]
[356911324,1743422877972,-148.5724,0.00027,2]
[356911325,1743422882403,-184.39,0.000275,12]
[356911342,1743422990815,-150.7605137,0.00027,2]
[356911343,1743423004305,-152.35,0.000275,12]
[356911344,1743423031603,-0.6670863,0.00027,2]
[356911345,1743423031614,-150.0,0.00027062,2]
[356911346,1743423031624,-150.0,0.00027366,2]
[356911347,1743423031633,-112.24541371,0.000274,2]
[356911348,1743423031647,-398.75458629,0.000274,2]
[356911349,1743423031657,-13.26,0.000275,12]
[356911350,1743423031667,-260.21967204,0.00029434,2]
[356911351,1743423031677,-350.0,0.000297,12]
[356911352,1743423031687,-150.0,0.000297,2]
[356911353,1743423031696,-350.0,0.000297,12]
[356911354,1743423031706,-511.00782797,0.000329,2]
[356911355,1743423031716,-418.48,0.0003486,2]
[356911356,1743423031726,-167.42,0.00035836,2]
[356911357,1743423031735,-150.0,0.000368,2]
[356911358,1743423031746,-362.892,0.00037343,2]
[356911359,1743423031755,-244.37,0.000386,7]
[356911360,1743423031765,-153.11,0.00039087,2]
[356911361,1743423031774,-167.42,0.00039419,2]
[356911362,1743423031785,-184.38,0.00042,120]
[356911363,1743423031795,-150.76,0.00042,120]
[356911364,1743423031804,-200.0,0.00042565,2]
[356911365,1743423031815,-1382.95,0.0004278,2]
[356911366,1743423031824,-167.42,0.00043003,2]
[356911367,1743423031834,-250.0,0.00044234,2]
[356911368,1743423031845,-3669.07,0.00044252,120]
[356911369,1743423031854,-152.97,0.00044259,2]
[356911370,1743423031864,-150.0,0.00044274,2]
[356911371,1743423031874,-4914.11458884,0.00044274,2]
[356911372,1743423031886,-2261.01562956,0.00044274,2]
[356911373,1743423031898,-16724.8697816,0.00044274,2]
[356911374,1743423031908,-200.0,0.00044426,2]
[356911375,1743423031918,-200.0,0.00044433,2]
[356911376,1743423031927,-680.95,0.00044433,2]
[356911377,1743423031937,-225.73,0.00044475,2]
[356911378,1743423031947,-168.0,0.00044495,4]
[356911379,1743423031956,-1518.41,0.00044496,120]
[356911380,1743423031966,-200.0,0.00044503,6]
[356911381,1743423031975,-895.84,0.0004452,120]
[356911382,1743423031984,-150.0,0.00044532,7]
[356911383,1743423031994,-500.0,0.00044533,10]
[356911384,1743423032003,-225.73,0.00044545,2]
[356911385,1743423032013,-225.73,0.00044615,2]
[356911386,1743423032022,-225.73,0.00044685,2]
[356911387,1743423032032,-5292.57,0.00044726,2]
[356911388,1743423032041,-3832.71,0.00044748,2]
[356911389,1743423032051,-225.73,0.00044755,2]
[356911390,1743423032060,-300.0,0.00044778,2]
[356911391,1743423032070,-179.33,0.0004478,2]
[356911392,1743423032079,-2751.0,0.00044795,120]
[356911393,1743423032089,-11113.6,0.00044801,2]
[356911394,1743423032098,-225.73,0.00044826,2]
[356911395,1743423032107,-153.95,0.00044851,2]
[356911396,1743423032117,-225.73,0.00044896,2]
[356911397,1743423032127,-2000.0,0.00044942,120]
[356911399,1743423032136,-225.73,0.00044966,2]
[356911401,1743423032146,-2000.0,0.00045023,120]
[356911402,1743423032155,-225.73,0.00045036,2]
[356911404,1743423032165,-1382.95,0.00045043,2]
[356911405,1743423032175,-225.73,0.00045107,2]
[356911406,1743423032185,-225.73,0.00045177,2]
[356911407,1743423032195,-225.73,0.00045247,2]
[356911408,1743423032204,-225.73,0.00045317,2]
[356911409,1743423032214,-225.73,0.00045387,2]
[356911410,1743423032223,-225.73,0.00045458,2]
[356911411,1743423032233,-225.73,0.00045528,2]
[356911413,1743423032242,-225.73,0.00045598,2]
[356911416,1743423032251,-225.73,0.00045668,2]
[356911417,1743423032260,-225.73,0.00045739,2]
[356911420,1743423032274,-733.55619666,0.00045775,2]
[356911421,1743423032285,-225.73,0.00045809,2]
[356911423,1743423032295,-159.05,0.00045834,2]
[356911425,1743423032304,-1000.0,0.00045857,2]
[356911427,1743423032314,-187.4,0.00045896,2]
[356911428,1743423032324,-994.926,0.00045927,75]
[356911430,1743423032334,-591.32,0.00046002,2]
[356911432,1743423032344,-591.32,0.00046074,2]
[356911433,1743423032354,-591.32,0.00046147,2]
[356911434,1743423032364,-591.32,0.00046219,2]
[356911435,1743423032373,-591.32,0.00046292,2]
[356911436,1743423032383,-591.32,0.00046365,2]
[356911437,1743423032392,-591.32,0.00046437,2]
[356911438,1743423032402,-591.32,0.0004651,2]
[356911439,1743423032411,-500.0,0.00046575,120]
[356911440,1743423032420,-591.32,0.00046583,2]
[356911441,1743423032430,-167.42,0.00046587,2]
[356911442,1743423032439,-188.07,0.0004661,2]
[356911443,1743423032449,-500.0,0.00046638,2]
[356911444,1743423032458,-591.32,0.00046655,2]
[356911445,1743423032467,-591.32,0.00046728,2]
[356911446,1743423032480,-591.32,0.000468,2]
[356911447,1743423032489,-629.44124269,0.00046849,120]
[356911448,1743423032499,-591.32,0.00046873,2]
[356911449,1743423032508,-591.32,0.00046946,2]
[356911450,1743423032519,-591.32,0.00047018,2]
[356911451,1743423032528,-591.32,0.00047091,2]
[356911452,1743423032539,-591.32,0.00047164,2]
[356911453,1743423032548,-591.32,0.00047236,2]
[356911454,1743423032559,-650.0942,0.00047281,2]
[356911455,1743423032569,-496.0182253,0.00047296,15]
[356911456,1743423032578,-1382.95,0.00047307,2]
[356911457,1743423032588,-591.32,0.00047309,2]
[356911458,1743423032597,-591.32,0.00047381,2]
[356911459,1743423032607,-500.0,0.00047396,120]
[356911460,1743423032617,-500.0,0.00047396,2]
[356911461,1743423032626,-500.0,0.00047396,120]
[356911462,1743423032635,-500.0,0.00047396,10]
[356911463,1743423032643,-291.01940251,0.00047396,120]
[356911464,1743423032653,-500.0,0.00047396,120]
[356911465,1743423032668,-1000.0,0.000474,7]
[356911466,1743423032678,-799.1,0.00047526,120]
[356911467,1743423032688,-500.0,0.00047526,120]
[356911468,1743423032697,-77401.02,0.00047526,7]
[356911469,1743423032707,-729.26,0.00047526,120]
[356911470,1743423032717,-500.0,0.00047526,120]
[356911471,1743423032726,-500.0,0.00047526,120]
[356911472,1743423032736,-500.0,0.00047526,120]
[356911473,1743423032745,-500.0,0.00047526,120]
[356911474,1743423032755,-515.53,0.00047526,120]
[356911475,1743423032764,-679.2,0.00047526,120]
[356911476,1743423032774,-500.0,0.00047526,120]
[356911477,1743423032783,-951.713,0.0004757,2]
[356911478,1743423032794,-1000.49,0.00047669,2]
[356911479,1743423032804,-500.0,0.0004767,120]
[356911480,1743423032813,-500.0,0.0004767,2]
[356911481,1743423032823,-500.0,0.0004767,120]
[356911482,1743423032832,-174.227702,0.0004767,10]
[356911483,1743423032842,-361.38895455,0.0004767,120]
[356911484,1743423032851,-150.0,0.00047709,7]
[356911485,1743423032861,-150.0,0.00047718,7]
[356911486,1743423032871,-150.0,0.00047719,7]
[356911487,1743423032880,-150.0,0.00047721,7]
[356911488,1743423032890,-496.01822523,0.00047722,15]
[356911489,1743423032899,-150.0,0.00047732,7]
[356911490,1743423032908,-150.0,0.00047732,7]
[356911491,1743423032919,-150.0,0.00047735,7]
[356911492,1743423032929,-150.0,0.00047736,7]
[356911493,1743423032938,-150.0,0.00047738,7]
[356911494,1743423032948,-150.0,0.00047741,7]
[356911495,1743423032958,-150.0,0.00047741,7]
[356911496,1743423032971,-150.0,0.0004775,7]
[356911497,1743423032980,-150.0,0.00047752,7]
[356911498,1743423032989,-150.0,0.00047754,7]
[356911499,1743423032999,-150.0,0.0004776,7]
[356911500,1743423033008,-150.0,0.00047767,7]
[356911501,1743423033018,-150.0,0.00047769,7]
[356911502,1743423033027,-150.0,0.00047771,7]
[356911503,1743423033037,-150.0,0.00047774,7]
[356911504,1743423033046,-150.0,0.00047781,7]
[356911505,1743423033056,-150.0,0.00047781,7]
[356911506,1743423033066,-150.0,0.00047782,7]
[356911507,1743423033075,-150.0,0.00047784,7]
[356911508,1743423033085,-150.0,0.00047786,7]
[356911509,1743423033095,-1321.94,0.00047799,120]
[356911510,1743423033107,-500.0,0.00047799,120]
[356911511,1743423033118,-500.0,0.00047799,120]
[356911512,1743423033128,-1143.8,0.00047799,2]
[356911513,1743423033139,-799.1,0.000478,120]
[356911514,1743423033149,-499.2974,0.000478,120]
[356911515,1743423033159,-1923.75461043,0.000478,15]
[356911516,1743423033169,-77401.02,0.000478,7]
[356911517,1743423033179,-729.26,0.000478,120]
[356911518,1743423033188,-500.0,0.000478,120]
[356911519,1743423033198,-500.0,0.000478,120]
[356911520,1743423033207,-500.0,0.000478,120]
[356911521,1743423033217,-468.05480241,0.000478,120]
[356911522,1743423033227,-515.53,0.000478,120]
[356911523,1743423033237,-679.2,0.000478,120]
[356911524,1743423033247,-500.0,0.000478,120]
[356911525,1743423033257,-150.0,0.00047806,7]
[356911526,1743423033267,-150.0,0.00047813,7]
[356911527,1743423033277,-150.0,0.00047815,7]
[356911528,1743423033287,-150.0,0.00047815,7]
[356911529,1743423033297,-150.0,0.00047816,7]
[356911530,1743423033306,-150.0,0.00047816,7]
[356911531,1743423033316,-150.0,0.00047825,7]
[356911532,1743423033327,-150.0,0.00047828,7]
[356911533,1743423033336,-150.0,0.00047829,7]
[356911534,1743423033346,-150.0,0.00047832,7]
[356911535,1743423033356,-1298.5457,0.00047842,2]
[356911536,1743423033366,-1499.2643,0.00047842,2]
[356911537,1743423033376,-1733.2756,0.00047842,2]
[356911538,1743423033385,-150.0,0.00047842,7]
[356911539,1743423033395,-150.0,0.00047845,7]
[356911540,1743423033406,-213.76090619,0.00047849,7]
[356911541,1743423033416,-905.0,0.00047853,7]
[356911542,1743423033425,-150.0,0.00047862,7]
[356911543,1743423033435,-150.0,0.00047863,7]
[356911544,1743423033445,-150.0,0.00047868,7]
[356911545,1743423033455,-150.0,0.00047872,7]
[356911546,1743423033465,-150.0,0.00047877,7]
[356911547,1743423033478,-274.46244612,0.00047886,14]
[356911548,1743423033490,-150.0,0.00047888,7]
[356911549,1743423033500,-20693.9602829,0.0004789,4]
[356911550,1743423033510,-150.0,0.00047896,7]
[356911551,1743423033521,-150.0,0.00047897,7]
[356911552,1743423033531,-66172.4352,0.000479,2]
[356911553,1743423033540,-1000.0,0.000479,2]
[356911554,1743423033551,-5000.0,0.000479,120]
[356911555,1743423033561,-1866.0,0.000479,7]
[356911556,1743423033570,-150.0,0.00047905,7]
[356911557,1743423033581,-150.0,0.00047915,7]
[356911558,1743423033592,-150.0,0.00047918,7]
[356911559,1743423033601,-150.0,0.00047921,7]
[356911560,1743423033611,-150.0,0.00047924,7]
[356911561,1743423033620,-150.0,0.00047927,7]
[356911562,1743423033630,-150.0,0.00047936,7]
[356911563,1743423033640,-6897.98676098,0.00047938,4]
[356911564,1743423033649,-300.0,0.0004794,7]
[356911565,1743423033662,-1000.49,0.00047943,2]
[356911566,1743423033672,-549.65,0.00047944,120]
[356911567,1743423033682,-199.09,0.00047944,2]
[356911568,1743423033691,-500.0,0.00047944,120]
[356911569,1743423033702,-150.0,0.00047947,7]
[356911570,1743423033712,-150.0,0.00047948,7]
[356911571,1743423033721,-150.0,0.00047957,7]
[356911572,1743423033732,-150.0,0.00047971,7]
[356911573,1743423033741,-153.18980587,0.00047973,10]
[356911574,1743423033751,-255.35463202,0.00047973,120]
[356911575,1743423033762,-150.0,0.00047977,7]
[356911576,1743423033772,-150.0,0.0004798,7]
[356911577,1743423033783,-68979.8676098,0.0004798,4]
[356911578,1743423033793,-150.0,0.00047981,7]
[356911579,1743423033802,-150.0,0.00047989,7]
[356911580,1743423033812,-6897.98676098,0.0004799,4]
[356911581,1743423033822,-292.493215,0.0004799,14]
[356911582,1743423033831,-151.0,0.0004799,14]
[356911583,1743423033841,-151.0,0.0004799,14]
[356911584,1743423033851,-315.006467,0.0004799,14]
[356911585,1743423033861,-315.006467,0.0004799,14]
[356911586,1743423033871,-315.006467,0.0004799,14]
[356911587,1743423033881,-315.006467,0.0004799,14]
[356911588,1743423033891,-151.0,0.0004799,14]
[356911589,1743423033902,-151.0,0.0004799,14]
[356911590,1743423033911,-24763.17100697,0.0004799,4]
[356911591,1743423033926,-1839.32768339,0.0004799,4]
[356911592,1743423033938,-714.21207113,0.0004799,4]
[356911593,1743423033949,-3049.72554325,0.0004799,4]
[356911594,1743423033961,-2897.92449487,0.0004799,4]
[356911595,1743423033978,-749.99999863,0.0004799,4]
[356911596,1743423033991,-10267.64769474,0.0004799,4]
[356911597,1743423034002,-1305.0,0.0004799,4]
[356911598,1743423034014,-652.73075561,0.0004799,4]
[356911605,1743423037557,-371.88784037,0.0004799,4]
[356911606,1743423037570,-363.90638154,0.0004799,4]
[356911607,1743423037581,-425.81706451,0.0004799,4]
[356911608,1743423037593,-8367.38001,0.0004799,4]
[356911609,1743423037609,-250.00000004,0.0004799,4]
[356911610,1743423037620,-260.58,0.0004799,4]
[356911611,1743423037631,-614.21682079,0.0004799,4]
[356911612,1743423037642,-1571.50376747,0.0004799,4]
[356911613,1743423037653,-8783.39900218,0.0004799,4]
[356911614,1743423037664,-30059.56939588,0.0004799,4]
[356911615,1743423037715,-713.80528119,0.0004799,4]
[356911616,1743423037726,-1477.22,0.0004799,4]
[356911617,1743423037770,-639.88925001,0.0004799,4]
[356911618,1743423037781,-1016.7529703,0.0004799,4]
[356911619,1743423037793,-1163.10000005,0.0004799,4]
[356911620,1743423037804,-759.1600005,0.0004799,4]
[356911621,1743423037815,-563.31326908,0.0004799,4]
[356911622,1743423037826,-428.61941707,0.0004799,4]
[356911623,1743423037837,-411.06,0.0004799,4]
[356911670,1743423039923,-19682.84197843,0.0004799,4]
[356911671,1743423039933,-151.0,0.0004799,14]
[356911672,1743423039942,-151.0,0.0004799,14]
[356911673,1743423039952,-151.0,0.0004799,14]
[356911674,1743423039964,-151.0,0.0004799,14]
[356911675,1743423039974,-151.0,0.0004799,14]
[356911676,1743423039983,-151.0,0.0004799,14]
[356911677,1743423039992,-151.0,0.0004799,14]
[356911678,1743423040001,-151.0,0.0004799,14]